Cogmind - Beta 17 @@@ ROGUE MODE // 2026.08.06 @ 18:42:26 Player: Floof Enjoyer Result: Self-destructed Performance ------------- Evolutions (2) 1000 Regions Visited (6) 1200 Robots Destroyed (19) 95 Value Destroyed (590) 590 Prototype IDs (1) 20 Alien Tech Used (0) 0 Bonus (0) 0 TOTAL SCORE: 2905 Bonus ------- None Cogmind --------- Core Integrity 444/550 Matter 179/300 Energy 368/430 System Corruption 0% Temperature Warning (331) Movement Core (450) Ox8 Location -8/Materials Parts ------- > --- POWER (2) -------- Improved Ion Engine Improved Ion Engine > --- PROPULSION (4) --- (None) > --- UTILITY (3) ------ Experimental Sensor Array Signal Interpreter Hardened Light Armor Plating > --- WEAPON (2) ------- EM Pulse Gun Beam Cannon > --- INVENTORY (5) ---- Heavy Particle Cannon Peak State ------------ > --- POWER ------------ Improved Ion Engine > --- PROPULSION ------- Hover Unit Improved Hover Unit Airjet > --- UTILITY ---------- Experimental Sensor Array Signal Interpreter Hardened Light Armor Plating > --- WEAPON ----------- Heavy Particle Cannon Light Assault Rifle > --- INVENTORY -------- EM Pulse Gun Light EM Pulse Cannon Beam Cannon [Rating: 24] Favorites ----------- Power Improved Ion Engine Engine Improved Ion Engine Propulsion Improved Hover Unit Wheel Compact Wheel Hover Unit Improved Hover Unit Utility Signal Interpreter Device Improved Terrain Scanner Processor Signal Interpreter Protection Hardened Light Armor Plating Weapon Light Assault Rifle Energy Gun EM Pulse Gun Energy Cannon Beam Cannon Ballistic Gun Light Assault Rifle Build | -11 -10 -9 -9 -9 -8 -8 ------- Run | Yrd Mat Mat Min Exi Min Mat Slots Evolved 4 | . . 2 . . . 2 Power 1 | . . . . . . 1 Propulsion 2 | . . 2 . . . . Utility 1 | . . . . . . 1 Weapon . | . . . . . . . Parts Attached 28 | 5 4 11 1 . . 7 Power 6 | 1 2 2 . . . 1 Engine 6 | 1 2 2 . . . 1 Core . | . . . . . . . Reactor . | . . . . . . . Propulsion 8 | 2 . 5 . . . 1 Treads . | . . . . . . . Leg . | . . . . . . . Wheel 3 | 2 . 1 . . . . Hover 5 | . . 4 . . . 1 Flight . | . . . . . . . Utility 4 | . 2 . 1 . . 1 Device 2 | . 1 . 1 . . . Storage . | . . . . . . . Processor 1 | . 1 . . . . . Hackware . | . . . . . . . Protection 1 | . . . . . . 1 Artifact . | . . . . . . . Weapon 10 | 2 . 4 . . . 4 Energy Gun 1 | . . . . . . 1 Energy Cannon 4 | . . 1 . . . 3 Ballistic Gun 5 | 2 . 3 . . . . Ballistic Cannon . | . . . . . . . Launcher . | . . . . . . . Special Weapon . | . . . . . . . Impact Weapon . | . . . . . . . Slashing Weapon . | . . . . . . . Piercing Weapon . | . . . . . . . Special Melee Weapon . | . . . . . . . Unidentified Prototypes 1 | . . . 1 . . . Parts Lost 9 | . . 4 . . . 5 Power 1 | . . 1 . . . . Propulsion 6 | . . 2 . . . 4 Utility . | . . . . . . . Weapon 2 | . . 1 . . . 1 Highest Loss Streak 4 | . . 4 . . . 4 To Critical Strikes . | . . . . . . . Average Backups 3 | 1 3 4 4 4 4 2 Power . | . 1 1 . . . . Propulsion . | . . . . . . . Utility . | . . . 1 1 1 . Weapon 2 | . 2 3 3 3 3 2 Tool/Special . | . . . . . . . Unused Backups 4 | . 2 . 1 1 . . Power . | . . . . . . . Propulsion . | . . . . . . . Utility . | . . . . . . . Weapon 4 | . 2 . 1 1 . . Tool/Special . | . . . . . . . Average Slot Usage (%) 90 | . 94 81 100 100 100 72 Engine 11 | . 14 9 11 11 11 12 Wheel 10 | . 28 18 . . . . Hover 22 | . . 9 44 44 44 18 Device 11 | . 14 11 11 11 11 9 Processor 10 | . 8 11 11 11 11 9 Energy Cannon 6 | . . 4 11 11 11 11 Ballistic Gun 15 | . 28 17 11 11 11 4 Peak Build Rating 24 | 5 9 14 20 20 20 24 Average Rating 13 | 3 8 10 16 20 20 20 On Entrance 12 | . 5 9 14 20 20 20 Avg Prop Armor Cover (%) 3 | . . 3 . . . . Naked Turns . | . . . . . . . Heaviest Build 27 | 5 8 12 12 12 12 27 Greatest Support 42 | 26 26 42 26 26 26 26 Greatest Overweight (x) 8 | . . . . . . 8 Average Overweight (x) . | . . . . . . . Largest Inventory Capacity 5 | 5 5 5 5 5 5 5 Average Capacity 5 | 5 5 5 5 5 5 5 Most Carried 5 | 3 5 5 5 4 4 5 Average Carried 3 | 1 3 4 4 4 4 2 Final Capacity 5 | 5 5 5 5 5 5 5 Final Carried 5 | 3 5 5 5 4 4 1 Class Distribution -------------------- 81% | Mutant 18% | Scavenger-Mutant Dominant Class ---------------- Mutant | -10/Materials Mutant | -9/Materials Scavenger-Mutant | -9/Mines Mutant | -9/Exiles Mutant | -8/Mines Mutant | -8/Materials Resources | -11 -10 -9 -9 -9 -8 -8 ----------- Run | Yrd Mat Mat Min Exi Min Mat Matter Collected 629 | 196 137 222 14 . . 60 Remotely . | . . . . . . . Salvage Created 783 | 17 208 453 . . . 105 Parts 53 | 2 17 30 . . . 4 Haulers Intercepted . | . . . . . . . Recyclers Shooed 3 | . 2 . . . . 1 Parts Field Recycled . | . . . . . . . Retrieved Matter . | . . . . . . . Parts Self-Destructed . | . . . . . . . Prevented . | . . . . . . . Parts Restored . | . . . . . . . Kills | -11 -10 -9 -9 -9 -8 -8 ------- Run | Yrd Mat Mat Min Exi Min Mat Combat Hostiles Destroyed 13 | . 4 7 . . . 2 Guns 9 | . 4 4 . . . 1 Cannons 4 | . . 3 . . . 1 Classes Destroyed 6 | 1 2 3 . . . . Builder 2 | . 2 . . . . . Tunneler 1 | 1 . . . . . . Recycler 1 | . . 1 . . . . Watcher 2 | . . 2 . . . . Grunt 9 | . 4 4 . . . 1 Sentry 4 | . . 3 . . . 1 Best Kill Streak 3 | 1 2 3 . . . 1 Combat Bots Only 2 | . 2 2 . . . 1 Max Kills in Single Turn 1 | 1 1 1 . . . 1 Gunslinging . | . . . . . . . Exploded . | . . . . . . . Melee . | . . . . . . . Uniques/NPCs Destroyed . | . . . . . . . Combat | -11 -10 -9 -9 -9 -8 -8 -------- Run | Yrd Mat Mat Min Exi Min Mat Hostile Shots Fired 138 | . 18 64 . . . 56 Missed 36 | . 4 19 . . . 13 Hits 102 | . 14 45 . . . 43 Projectile 102 | . 14 45 . . . 43 Critical Strikes 5 | . . 1 . . . 4 Damage Taken 1432 | . 159 628 . . . 645 Core 323 | . 57 160 . . . 106 Absorbed by Shields . | . . . . . . . Core Remaining (%) 79 | 100 77 . . . 60 . Volleys Fired 95 | 15 24 37 . . . 19 Largest 2 | 2 2 2 . . . 2 Hottest 116 | 40 40 80 . . . 116 Shots Fired 173 | 23 48 74 . . . 28 Gun 144 | 23 48 64 . . . 9 Cannon 29 | . . 10 . . . 19 Launcher . | . . . . . . . Special . | . . . . . . . Kinetic 140 | 23 48 64 . . . 5 Thermal 25 | . . 10 . . . 15 Explosive . | . . . . . . . Electromagnetic 8 | . . . . . . 8 Robot Hit Streak 14 | 3 6 14 . . . 5 Robot Miss Streak 4 | 4 2 2 . . . 2 Penetration Max . | . . . . . . . Secondary Targets 1 | . . 1 . . . . Max Gunslinging Chain 1 | . . 1 . . . . Shots Hit Robots 117 | 13 33 53 . . . 18 Core Hits 43 | 2 16 21 . . . 4 Critical Kills . | . . . . . . . Critical Parts Destroyed . | . . . . . . . Critical Strikes . | . . . . . . . Melee Attacks . | . . . . . . . Impact . | . . . . . . . Slashing . | . . . . . . . Piercing . | . . . . . . . Sneak Attacks . | . . . . . . . Combat Hostiles . | . . . . . . . Follow-up Attacks . | . . . . . . . Damage Inflicted 1322 | 105 273 630 . . . 314 Guns 923 | 105 273 487 . . . 58 Cannons 399 | . . 143 . . . 256 Explosions . | . . . . . . . Melee . | . . . . . . . Ramming . | . . . . . . . Kinetic 898 | 105 273 487 . . . 33 Thermal 343 | . . 143 . . . 200 Explosive . | . . . . . . . Electromagnetic 81 | . . . . . . 81 Impact . | . . . . . . . Slashing . | . . . . . . . Piercing . | . . . . . . . Highest Corruption . | . . . . . . . Average Corruption . | . . . . . . . Corruption Purged . | . . . . . . . Corruption Blocked . | . . . . . . . Overload Shots . | . . . . . . . Overflow Damage . | . . . . . . . Projectiles . | . . . . . . . Explosions . | . . . . . . . Melee . | . . . . . . . Knockbacks . | . . . . . . . Impact . | . . . . . . . Kinetic . | . . . . . . . Secondary . | . . . . . . . Self-Inflicted Damage . | . . . . . . . Shots . | . . . . . . . Rammed . | . . . . . . . Targets Rammed . | . . . . . . . Kicked . | . . . . . . . Crushed . | . . . . . . . Highest Temperature 566 | . 24 153 . . . 566 Average Temperature 191 | . 9 37 . . . 354 Received Heat Transfer 771 | . 93 318 . . . 360 Effects 21 | . . . . . . 21 Shutdowns 6 | . . . . . . 6 Interference 6 | . . . . . . 6 Matter Decay 3 | . . . . . . 3 Short Circuit 4 | . . . . . . 4 Damage (minor) 2 | . . . . . . 2 Siege Activations . | . . . . . . . Martial Activations . | . . . . . . . Shielding Activations . | . . . . . . . Robots Disrupted . | . . . . . . . Combat Hostiles . | . . . . . . . Robots Corrupted . | . . . . . . . Combat Hostiles . | . . . . . . . Parts Fried . | . . . . . . . Impact Corruptions . | . . . . . . . Robots Melted . | . . . . . . . Combat Hostiles . | . . . . . . . Parts Melted 2 | . . . . . . 2 Heat Transferred 666 | . . 296 . . . 370 Parts Sabotaged . | . . . . . . . Parts Stolen . | . . . . . . . Parts Stripped . | . . . . . . . Power Chain Reactions . | . . . . . . . Alert | -11 -10 -9 -9 -9 -8 -8 ------- Run | Yrd Mat Mat Min Exi Min Mat Maximum Alert Level . | . . . . . . . Low Security (%) 100 | 100 100 100 100 . 100 100 Level 1 . | . . . . . . . Level 2 . | . . . . . . . Level 3 . | . . . . . . . Level 4 . | . . . . . . . Level 5 . | . . . . . . . High Security . | . . . . . . . Max Security . | . . . . . . . Peak Influence 86 | 5 80 86 33 . . 60 Initial 33 | . . 20 33 . . . Average 25 | . 33 46 6 . . 19 Influence Increases 437 | 5 110 226 . . . 96 Destroy 0b10 Robot/C 260 | . 80 140 . . . 40 Destroy 0b10 Robot/NC 30 | 5 10 15 . . . . Destroy Leader 84 | . 20 54 . . . 10 Successful Hack 2 | . . 2 . . . . Disable Machine 15 | . . . . . . 15 Destroy Structure 1 | . . . . . . 1 Lose Combat Pursuer 45 | . . 15 . . . 30 Influence Decreases 397 | 5 60 190 86 . . 56 Entered New Map 83 | . . 30 53 . . . Time Decay 254 | 5 60 120 33 . . 36 Lost Part 60 | . . 40 . . . 20 Squads Dispatched 2 | . 1 1 . . . . Investigation 1 | . . 1 . . . . Extermination . | . . . . . . . Reinforcement 1 | . 1 . . . . . Assault . | . . . . . . . Garrison . | . . . . . . . Intercept . | . . . . . . . Searches Triggered . | . . . . . . . Construction Impeded . | . . . . . . . Haulers Reinforced . | . . . . . . . Active Scanning Responses . | . . . . . . . Cargo Convoy Interrupts . | . . . . . . . Stealth | -11 -10 -9 -9 -9 -8 -8 --------- Run | Yrd Mat Mat Min Exi Min Mat Distress Signals . | . . . . . . . Communications Jammed . | . . . . . . . Distress Signals . | . . . . . . . Times Spotted 25 | . 6 11 . . . 8 Peak Tracking Total 6 | . 3 3 . . . 6 Tactical Retreats 2 | . . 1 . . . 1 Traps | -11 -10 -9 -9 -9 -8 -8 ------- Run | Yrd Mat Mat Min Exi Min Mat Traps Triggered . | . . . . . . . Indirectly . | . . . . . . . Trap Hack Attempts . | . . . . . . . Triggered . | . . . . . . . Disarmed . | . . . . . . . Reprogrammed . | . . . . . . . Reused . | . . . . . . . Traps Extracted . | . . . . . . . Installed . | . . . . . . . Triggered . | . . . . . . . Machines | -11 -10 -9 -9 -9 -8 -8 ---------- Run | Yrd Mat Mat Min Exi Min Mat Machines Disabled 1 | . . . . . . 1 Max in Single Turn 1 | . . . . . . 1 Machines Repaired . | . . . . . . . Machines Dismantled . | . . . . . . . Machines Sabotaged . | . . . . . . . Overloaded Fab Kills . | . . . . . . . Hacking | -11 -10 -9 -9 -9 -8 -8 --------- Run | Yrd Mat Mat Min Exi Min Mat Machines Accessed 5 | . . 1 . 4 . . Terminals . | . . . . . . . Fabricators . | . . . . . . . Repair Stations . | . . . . . . . Recycling Units . | . . . . . . . Scanalyzers 1 | . . 1 . . . . Garrison Access . | . . . . . . . Total Hacks 7 | . . 3 . 4 . . Successful 6 | . . 2 . 4 . . Failed 1 | . . 1 . . . . Catastrophic . | . . . . . . . Database Lockouts . | . . . . . . . Manual . | . . . . . . . Terminals . | . . . . . . . Fabricators . | . . . . . . . Repair Stations . | . . . . . . . Recycling Units . | . . . . . . . Scanalyzers 3 | . . 3 . . . . Garrison Access . | . . . . . . . Terminal Hacks 4 | . . . . 4 . . Record 4 | . . . . 4 . . Fabricator Hacks . | . . . . . . . Repair Station Hacks . | . . . . . . . Recycling Unit Hacks . | . . . . . . . Scanalyzer 2 | . . 2 . . . . Retrieve Study 2 | . . 2 . . . . Garrison Access Hacks . | . . . . . . . Unauthorized Hacks . | . . . . . . . Terminals . | . . . . . . . Fabricators . | . . . . . . . Repair Stations . | . . . . . . . Recycling Units . | . . . . . . . Scanalyzers . | . . . . . . . Garrison Access . | . . . . . . . Data Cores Recovered . | . . . . . . . Used . | . . . . . . . Hacking Detections 1 | . . 1 . . . . Full Trace Events 1 | . . 1 . . . . Feedback Events . | . . . . . . . Feedback Blocked . | . . . . . . . Robot Schematics Acquired . | . . . . . . . Robots Built . | . . . . . . . Authchips . | . . . . . . . Time . | . . . . . . . Total Robot Build Rating . | . . . . . . . Part Schematics Acquired . | . . . . . . . Parts Built . | . . . . . . . Authchips . | . . . . . . . Time . | . . . . . . . Total Part Build Rating . | . . . . . . . Part Studies Acquired 2 | . . 2 . . . . Parts Repaired . | . . . . . . . Time . | . . . . . . . Parts Recycled . | . . . . . . . Recycled Matter . | . . . . . . . Retrieved Matter . | . . . . . . . Retrieved Components . | . . . . . . . Parts Scanalyzed . | . . . . . . . Part Schematics Acquired . | . . . . . . . Parts Damaged . | . . . . . . . Bothacking | -11 -10 -9 -9 -9 -8 -8 ------------ Run | Yrd Mat Mat Min Exi Min Mat Used RIF Installer . | . . . . . . . Robots Hacked . | . . . . . . . Non-combat . | . . . . . . . Combat . | . . . . . . . Robot Hacks Applied . | . . . . . . . Relay Couplers Released . | . . . . . . . Fabnet Peak Effective % . | . . . . . . . Robots Rewired . | . . . . . . . Allies Hacked . | . . . . . . . Hacks Repelled . | . . . . . . . Allies | -11 -10 -9 -9 -9 -8 -8 -------- Run | Yrd Mat Mat Min Exi Min Mat Total Allies . | . . . . . . . Largest Group . | . . . . . . . Highest-Rated Group . | . . . . . . . Highest-Rated Ally . | . . . . . . . Total Orders . | . . . . . . . Ally Attacks . | . . . . . . . Total Damage . | . . . . . . . Kills . | . . . . . . . Allies Corrupted . | . . . . . . . Allies Melted . | . . . . . . . Intel | -11 -10 -9 -9 -9 -8 -8 ------- Run | Yrd Mat Mat Min Exi Min Mat Active Infowar (turns) 877 | . 193 256 203 125 34 66 Sensors 313 | . . . 88 125 34 66 Terrain 564 | . 193 256 115 . . . Robot Analysis Total . | . . . . . . . Derelict Logs Recovered . | . . . . . . . Drone Launches . | . . . . . . . Drone Recoveries . | . . . . . . . Exploration | -11 -10 -9 -9 -9 -8 -8 ------------- Run | Yrd Mat Mat Min Exi Min Mat Turns Passed 993 | 80 193 256 203 125 34 102 Spaces Moved 946 | 41 132 169 220 260 71 53 Core 9 | 7 . . . . . 2 Treads . | . . . . . . . Legs . | . . . . . . . Wheels 267 | 34 132 101 . . . . Hover 670 | . . 68 220 260 71 51 Flight . | . . . . . . . Fastest Speed 48 | 50 90 48 48 48 48 48 Average Speed 62 | 83 90 76 48 48 48 80 Slowest Speed 450 | 90 90 100 48 48 48 450 Overloaded Moves . | . . . . . . . Propulsion Burnouts . | . . . . . . . Robots Hopped . | . . . . . . . Potential Cave-ins . | . . . . . . . Cave-ins Triggered . | . . . . . . . Exploration Rate (%) 31 | 3 35 28 51 64 34 8 Regions Visited 6 Branch Regions 3 Pre-discovered Areas . | . . . . . . . Known Exits Taken 5 | . 1 1 1 1 1 . Unknown Exits Taken 1 | 1 . . . . . . Scrap Searched 2 | . . . 2 . . . Spaces Dug . | . . . . . . . Terrain Destroyed 1 | . . . . . . 1 Melee . | . . . . . . . Projectile 1 | . . . . . . 1 AOE . | . . . . . . . Terrain Rammed . | . . . . . . . Walls Destroyed . | . . . . . . . Machines Disabled . | . . . . . . . Actions | -11 -10 -9 -9 -9 -8 -8 --------- Run | Yrd Mat Mat Min Exi Min Mat Total 1200 | 68 170 230 317 260 70 85 Wait 95 | . . 1 93 . . 1 Move 940 | 40 131 168 219 259 70 53 Hop . | . . . . . . . Pick Up 27 | 8 7 8 2 . . 2 Fast Attach 3 | . . 3 . . . . Attach 17 | 5 2 6 . . . 4 Detach . | . . . . . . . Swap 8 | . 2 2 1 . . 3 Drop 15 | . 4 5 2 1 . 3 Fire 95 | 15 24 37 . . . 19 Melee . | . . . . . . . Ram . | . . . . . . . Kick . | . . . . . . . Crush . | . . . . . . . Escape Stasis . | . . . . . . . Rewire . | . . . . . . . Trap . | . . . . . . . Miscellaneous . | . . . . . . . Route ------- -11/Scrapyard -10/Materials -9/Materials -9/Mines -9/Exiles -8/Mines -8/Materials History --------- Turn | Location | Event 6 | -11/Scrapyard | Discovered new exit (range 15) 81 | -11/Scrapyard | Entered Materials 261 | -10/Materials | Discovered new exit (range 16) 273 | -10/Materials | Identified exit to Materials 274 | -10/Materials | Entered another Materials area 274 | -9/Materials | Evolved 2 slots: Propulsion x2 301 | -9/Materials | Build established: Mutant 464 | -9/Materials | Lost 4 parts (1p2n1w) 512 | -9/Materials | Discovered new exit (range 16) 530 | -9/Materials | Identified exit to Mines 530 | -9/Materials | Entered Mines 643 | -9/Mines | Found a damaged Exp. Sensor Array with a note attached 644 | -9/Mines | Found Prototype Device 645 | -9/Mines | Identified Exp. Sensor Array 731 | -9/Mines | Deemed a non-threat by the Exiles lab entrance 731 | -9/Mines | Discovered new exit (range 5) 733 | -9/Mines | Identified exit to Exiles 733 | -9/Mines | Entered Exiles 733 | -9/Exiles | Found Exiles lab abandoned 853 | -9/Exiles | Discovered new exit (range 12) 857 | -9/Exiles | Identified exit to Mines 858 | -9/Exiles | Entered Mines 884 | -8/Mines | Discovered new exit (range 15) 891 | -8/Mines | Identified exit to Materials 892 | -8/Mines | Entered Materials 892 | -8/Materials | Evolved 2 slots: Power x1, Utility x1 979 | -8/Materials | Lost 4 parts (3n1w) 994 | -8/Materials | Self-destructed Last Messages --------------- Power failure, Imp. Ion Engine shutdown. Overheating: Broken Signal Interpreter damaged (-7). Airjet broken. Overheating: Short circuit. Beam Cannon+ broken. Overheating: Short circuit. Imp. Heat Sink melted. G-47 Trooper destroyed. Overheating: System interference. EM Pulse Gun temporarily disabled. Broken Airjet destroyed. Overheating: Matter decay (-45). Power failure, Imp. Ion Engine shutdown. R-06 Scavenger collects Particle Gun. Overheating: Matter decay (-41). R-06 Scavenger collects Corrupted Lgt. Nuclear Core. R-06 Scavenger collects Broken Lgt. EM Pulse Cannon. Map ----- +----------------------------------------------------+ | ???????????????# ?#####? ????????????? | | ???????????????# ]]]?# #? """ ????????????? | | ???????????????# ]]] # # """ ????????????? | | ???????????????# ]] # # """ #???????????? | | ???????????????# + + #???????????? | | ???????????????# # # #???????????? | | ???????????????# # # #???????????? | | ???????????????# ?# #?""T"" #???????????? | | ???????????????########?# #?""""" +???????????? | | ?????????????????# # #??#######???????????? | | ?????????????????# # #????????????????????? | | ?????????????????# " + ########?????????????? | | ?????????????????# T # # ] #?????????????? | | ?????????????????# " # + =#?????????????? | | ?????????????????# ?# # """ =#?????????????? | | ?????????????????######?# # """ #?????????????? | | ????????????????????????# # """ +?????????????? | | ????????????????????????# # #?????????????? | | ?????????????? ?######## ###+#### ???????? | | ??????????????? # ???????? | | ????????????????# ???????? | | ????????????????## ???????? | | ????????????????#####+#########+####### ????????? | | ????????????????# #?????????????????????? | | ????????????????# w Y r*#?????????????????????? | | ????????? [ + !! m"r@ #?????????????????????? | | ??????? # !! "R=* #????????????????????? | | ??????? ??# !! """ ##????????????????????? | | ????????""" ????#############????????????????????? | | ?????????"???????????????????????????????????????? | | ?????????????????????????????????????????????????? | | ?????????????????????????????????????????????????? | | ?????????????????????????????????????????????????? | | ?????????????????????????????????????????????????? | | ?????????????????????????????????????????????????? | | ?????????????????????????????????????????????????? | | ?????????????????????????????????????????????????? | | ?????????????????????????????????????????????????? | | ?????????????????????????????????????????????????? | | ?????????????????????????????????????????????????? | | ?????????????????????????????????????????????????? | | ?????????????????????????????????????????????????? | | ?????????????????????????????????????????????????? | | ?????????????????????????????????????????????????? | | ?????????????????????????????????????????????????? | | ?????????????????????????????????????????????????? | | ?????????????????????????????????????????????????? | | ?????????????????????????????????????????????????? | | ?????????????????????????????????????????????????? | | ?????????????????????????????????????????????????? | +----------------------------------------------------+ Best States ------------- Heat Dissipation 31 Energy Generation 19 Energy Capacity 430 Matter Stores 300 Matter Capacity 300 Sight Range 16 Robot Scan Range 20 Terrain Scan Range 16 Terrain Scan Density 10 Armor Coverage 150 Evasion (%) 55 Item Schematics ----------------- None Robot Schematics ------------------ None Fabricated ------------ Nothing Repaired ---------- Nothing Studied --------- Lgt. Assault Rifle | -9/Materials | Hacked Beam Cannon | -9/Materials | Hacked Alien Tech Used ----------------- None Achievements -------------- None Challenges ------------ None Game ------ Seed ThiefTransportRifle Manual? 0 Play Time 00:13:48 Cumulative 15.8 hours Start 2026.08.06 @ 18:30:33 End 2026.08.06 @ 18:42:26 Sessions 1 Manual Loads 0 Difficulty Rogue Special Mode None Game No. 57 Rogue 57 Adventurer 0 Explorer 0 Win Type - Total 0 Types 0/0/0/0/0/0/0/0/0/0 Lore% 15 Gallery% 21 Achievement% 16 Wizard Run 0 Options --------- Layout 1 ASCII 0 Keyboard 0 Movement Mouse Keybinds 0 Fullscreen 1 Font 24/Smallcaps Map View 50x35 Zoom Use 0% Tactical HUD 0 Map Filters NONE Filters NONE Steam 1 RUN: d64c944b-70f3-443f-a423-c2f2732b42f1